fUSD/lending_fUSD_20250216
["ID","MTS","AMOUNT","RATE_DAILY","PERIOD"]
[353287196,1739740261792,-507.52912253,0.00011123,2]
[353287197,1739740261802,-500.0,0.00011123,2]
[353287198,1739740261811,-500.0,0.00011123,2]
[353287199,1739740261821,-1222.11,0.00011123,2]
[353287200,1739740261830,-2352.05,0.00011123,2]
[353287201,1739740261839,-500.0,0.00011123,2]
[353287202,1739740261849,-873.68,0.00011123,2]
[353287203,1739740261859,-1126.11,0.00011123,2]
[353287204,1739740261868,-939.29,0.00011123,2]
[353287205,1739740261878,-804.65,0.00011123,2]
[353287206,1739740261887,-453.33,0.00011123,2]
[353287207,1739740261896,-509.54,0.00011123,2]
[353287208,1739740261906,-500.0,0.00011123,2]
[353287209,1739740261915,-908.07,0.00011123,2]
[353287210,1739740261925,-536.39,0.00011123,2]
[353287211,1739740261934,-1548.39723637,0.00011123,2]
[353287212,1739740261946,-133.37276363,0.00011123,2]
[353287213,1739740261955,-500.0,0.00011123,2]
[353287214,1739740262017,-500.0,0.00011123,2]
[353287215,1739740262026,-851.0,0.00011123,2]
[353287216,1739740262036,-500.0,0.00011123,2]
[353287217,1739740262045,-1000.0,0.00011123,2]
[353287218,1739740262054,-868.41,0.00011123,2]
[353287219,1739740262063,-871.31,0.00011123,2]
[353287220,1739740262073,-1403.41,0.00011123,2]
[353287221,1739740262083,-679.25,0.00011123,2]
[353287222,1739740262092,-500.0,0.00011123,2]
[353287223,1739740262102,-1023.54,0.00011123,2]
[353287224,1739740262111,-500.0,0.00011123,2]
[353287225,1739740262120,-500.0,0.00011123,2]
[353287226,1739740262129,-880.77,0.00011123,2]
[353287227,1739740262139,-704.09,0.00011123,2]
[353287228,1739740262148,-1915.71,0.00011123,2]
[353287229,1739740262157,-1539.85,0.00011123,2]
[353287230,1739740262166,-639.97,0.00011123,2]
[353287231,1739740262182,-500.0,0.00011123,2]
[353287232,1739740262197,-500.0,0.00011123,2]
[353287233,1739740262207,-40.74319323,0.00011123,2]
[353287234,1739740262219,-459.25680677,0.00011123,2]
[353287235,1739740262229,-1080.91,0.00011123,2]
[353287236,1739740262240,-500.0,0.00011123,2]
[353287237,1739740262250,-500.0,0.00011123,2]
[353287238,1739740262260,-1083.56,0.00011123,2]
[353287239,1739740262270,-500.0,0.00011123,2]
[353287240,1739740262282,-1569.08,0.00011123,2]
[353287241,1739740262293,-598.32,0.00011123,2]
[353287242,1739740262303,-500.0,0.00011123,2]
[353287243,1739740262314,-500.0,0.00011123,2]
[353287244,1739740262325,-500.0,0.00011123,2]
[353287245,1739740262335,-500.0,0.00011123,2]
[353287246,1739740262346,-500.0,0.00011123,2]
[353287247,1739740262357,-500.0,0.00011123,2]
[353287248,1739740262367,-500.0,0.00011123,2]
[353287249,1739740262376,-500.0,0.00011123,2]
[353287250,1739740262385,-500.0,0.00011123,2]
[353287251,1739740262395,-500.0,0.00011123,2]
[353287252,1739740262404,-929.54,0.00011123,2]
[353287253,1739740262413,-500.0,0.00011123,2]
[353287254,1739740262422,-807.68,0.00011123,2]
[353287255,1739740262431,-801.79,0.00011123,2]
[353287256,1739740262440,-500.0,0.00011123,2]
[353287257,1739740262451,-500.0,0.00011123,2]
[353287258,1739740262461,-1279.83,0.00011123,2]
[353287259,1739740262470,-500.0,0.00011123,2]
[353287260,1739740262478,-66.14435243,0.00011123,2]
[353287261,1739740262505,-1080.16564757,0.00011123,2]
[353287262,1739740262514,-500.0,0.00011123,2]
[353287263,1739740262523,-1890.16,0.00011123,2]
[353287264,1739740262532,-863.92,0.00011123,2]
[353287265,1739740262541,-500.0,0.00011123,2]
[353287266,1739740262551,-1741.98,0.00011123,2]
[353287267,1739740262560,-1269.13,0.00011123,2]
[353287268,1739740262570,-500.0,0.00011123,2]
[353287269,1739740262579,-906.83,0.00011123,2]
[353287270,1739740262588,-1189.86,0.00011123,2]
[353287271,1739740262598,-500.0,0.00011123,2]
[353287272,1739740262607,-500.0,0.00011123,2]
[353287273,1739740262616,-2061.05,0.00011123,2]
[353287274,1739740262626,-507.96527195,0.00011123,2]
[353287275,1739740262635,-500.0,0.00011123,2]
[353287276,1739740262644,-500.0,0.00011123,2]
[353287277,1739740262653,-500.0,0.00011123,2]
[353287278,1739740262663,-500.0,0.00011123,2]
[353287279,1739740262672,-500.0,0.00011123,2]
[353287280,1739740262682,-500.0,0.00011123,2]
[353287281,1739740262691,-725.77,0.00011123,2]
[353287282,1739740262701,-500.0,0.00011123,2]
[353287283,1739740262711,-500.0,0.00011123,2]
[353287284,1739740262720,-500.0,0.00011123,2]
[353287285,1739740262730,-500.0,0.00011123,2]
[353287286,1739740262739,-730.56,0.00011123,2]
[353287287,1739740262748,-512.10377911,0.00011123,2]
[353287288,1739740262758,-1020.29,0.00011123,2]
[353287289,1739740262768,-500.0,0.00011123,2]
[353287290,1739740262777,-981.84,0.00011123,2]
[353287291,1739740262786,-500.0,0.00011123,2]
[353287292,1739740262796,-500.0,0.00011123,2]
[353287293,1739740262806,-500.0,0.00011123,2]
[353287294,1739740262815,-685.74,0.00011123,2]
[353287295,1739740262825,-631.93894751,0.00011123,2]
[353287296,1739740262837,-886.55,0.00011123,2]
[353287297,1739740262846,-500.0,0.00011123,2]
[353287298,1739740262856,-1382.37,0.00011123,2]
[353287299,1739740262866,-500.0,0.00011123,2]
[353287300,1739740262876,-500.0,0.00011123,2]
[353287301,1739740262885,-857.05,0.00011123,2]
[353287302,1739740262894,-500.0,0.00011123,2]
[353287303,1739740262903,-500.0,0.00011123,2]
[353287304,1739740262912,-500.0,0.00011123,2]
[353287305,1739740262921,-520.62,0.00011123,2]
[353287306,1739740262930,-500.0,0.00011123,2]
[353287307,1739740262940,-500.0,0.00011123,2]
[353287308,1739740262949,-500.0,0.00011123,2]
[353287309,1739740262958,-1192.71,0.00011123,2]
[353287310,1739740262968,-500.0,0.00011123,2]
[353287311,1739740262978,-500.0,0.00011123,2]
[353287312,1739740262987,-882.49,0.00011123,2]
[353287313,1739740262997,-500.0,0.00011123,2]
[353287314,1739740263006,-500.0,0.00011123,2]
[353287315,1739740263016,-1151.62,0.00011123,2]
[353287316,1739740263025,-560.91,0.00011123,2]
[353287317,1739740263035,-500.0,0.00011123,2]
[353287318,1739740263044,-500.0,0.00011123,2]
[353287319,1739740263054,-500.0,0.00011123,2]
[353287320,1739740263064,-505.74841916,0.00011123,2]
[353287321,1739740263073,-500.0,0.00011123,2]
[353287322,1739740263083,-663.33,0.00011123,2]
[353287323,1739740263093,-500.0,0.00011123,2]
[353287324,1739740263102,-1262.27,0.00011123,2]
[353287325,1739740263112,-1043.07,0.00011123,2]
[353287326,1739740263121,-500.0,0.00011123,2]
[353287327,1739740263131,-1160.76,0.00011123,2]
[353287328,1739740263141,-672.14,0.00011123,2]
[353287329,1739740263151,-500.0,0.00011123,2]
[353287330,1739740263161,-500.0,0.00011123,2]
[353287331,1739740263171,-422.75881858,0.00011123,2]
[353287332,1739740263180,-660.27,0.00011123,2]
[353287333,1739740263189,-725.35,0.00011123,2]
[353287334,1739740263199,-500.0,0.00011123,2]
[353287335,1739740263208,-507.08846709,0.00011123,2]
[353287336,1739740263218,-693.8,0.00011123,2]
[353287337,1739740263228,-150.0,0.00011135,2]
[353287338,1739740263237,-501.02413487,0.0001115,2]
[353287339,1739740263247,-508.46251647,0.00011154,2]
[353287340,1739740263257,-433.06098804,0.00011154,2]
[353287341,1739740263266,-501.02413487,0.00011187,2]
[353287342,1739740263276,-169.59203665,0.00011187,2]
[353287343,1739740263288,-8001.8855063,0.00011187,2]
[353287344,1739740263298,-3896.75217608,0.00011187,2]
[353287345,1739740263307,-426.42030256,0.00011187,2]
[353287346,1739740263316,-500.0,0.00011204,2]
[353287347,1739740263327,-665.87,0.00011204,2]
[353287348,1739740263336,-500.0,0.00011204,2]
[353287349,1739740263345,-500.0,0.00011204,2]
[353287350,1739740263356,-605.69,0.00011204,2]
[353287351,1739740263366,-646.42,0.00011204,2]
[353287352,1739740263375,-124920.53606641,0.00011205,3]
[353287353,1739740263400,-683.64864029,0.00011205,3]
[353287354,1739740263420,-1499.86234612,0.00011205,3]
[353287355,1739740263431,-7692.88547222,0.00011205,3]
[353287356,1739740263870,-500.0,0.00010958,2]
[353287357,1739740263880,-500.0,0.00010958,2]
[353287358,1739740263890,-500.0,0.00010958,2]
[353287359,1739740263900,-500.0,0.00010958,2]
[353287360,1739740263910,-503.12715141,0.00010958,2]
[353287361,1739740263919,-500.0,0.00011041,2]
[353287362,1739740263929,-500.0,0.00011041,2]
[353287363,1739740263939,-500.0,0.00011041,2]
[353287364,1739740263949,-500.0,0.00011123,2]
[353287365,1739740263958,-500.0,0.00011123,2]
[353287366,1739740263968,-500.0,0.00011123,2]
[353287367,1739740263977,-5210.18697479,0.00011205,3]
[353287368,1739740263989,-281.55,0.00011205,3]
[353287369,1739740264015,-500.0,0.00010958,2]
[353287370,1739740264030,-5.89,0.00011205,3]
[353287371,1739740264054,-300045.04022369,0.00011205,3]
[353287372,1739740264072,-500.0,0.00011041,2]
[353287373,1739740264081,-389.82274595,0.00011205,3]
[353287374,1739740264100,-315169.33,0.00011205,3]
[353287375,1739740264111,-2116.18886571,0.00011205,3]
[353287376,1739740264522,-269.24704914,0.00010958,2]
[353287377,1739740264534,-230.75295086,0.00010958,2]
[353287378,1739740264544,-272.48921196,0.00011041,2]
[353287379,1739740264563,-227.51078804,0.00011041,2]
[353287380,1739740264574,-500.0,0.00011123,2]
[353287381,1739740264583,-15755.54033305,0.00011205,3]
[353287382,1739740264729,-3701.4063664,0.00011205,3]
[353287383,1739740264742,-2012.917632,0.00011205,3]
[353287386,1739740451868,312.8312,8.699e-05,2]
[353287389,1739740661032,587.28,0.0002,120]
[353287390,1739740998286,613.28,8.219e-05,2]
[353287421,1739741277422,500.0,0.0002,120]
[353287422,1739741277747,500.0,0.0002,120]
[353287423,1739741277928,174.56,0.0002,120]
[353287441,1739741432434,-568.17990878,8.836e-05,2]
[353287442,1739741432494,-1705.24669122,8.836e-05,2]
[353287443,1739741432504,-1767.2818,8.836e-05,2]
[353287444,1739741432514,-200.0,9.719e-05,2]
[353287445,1739741432524,-200.0,9.719e-05,2]
[353287446,1739741432534,-200.0,9.719e-05,2]
[353287447,1739741432543,-416.3,9.875e-05,2]
[353287448,1739741432553,-23900.0,9.884e-05,2]
[353287450,1739741432563,-197.65824608,9.999e-05,2]
[353287452,1739741432572,-18367.5140627,0.0001,2]
[353287454,1739741432583,-2643.39459498,0.0001,2]
[353287985,1739741438261,-1025.15144011,0.0001,2]
[353287988,1739741438274,-129212.27369798,0.0001,2]
[353287999,1739741438370,-2903.63228823,0.0001,2]
[353288001,1739741438382,-4886.05786298,0.0001,2]
[353288199,1739741440331,-262.6439895,0.0001,2]
[353288202,1739741440342,-112194.00000407,0.0001,2]
[353288204,1739741440353,-1505.50621642,0.0001,2]
[353288206,1739741440364,-406.39551815,0.0001,2]
[353288210,1739741440397,-404.0,0.0001,2]
[353288213,1739741440407,-1891.83830736,0.0001,2]
[353288215,1739741440418,-809.13387185,0.0001,2]
[353288229,1739741440627,-2237.2350349,0.0001,2]
[353288231,1739741440638,-776.08324379,0.0001,2]
[353288501,1739741443228,-284.57849003,0.0001,2]
[353288522,1739741443398,-49865.41548203,0.0001,2]
[353288523,1739741443407,-489812.33620012,0.0001,2]
[353288525,1739741443416,-8062.88459252,0.0001,2]
[353288527,1739741443425,-594.13825678,0.0001,2]
[353288528,1739741443434,-1073.99,0.00010004,2]
[353288530,1739741443443,-301.11,0.00010093,2]
[353288532,1739741443452,-200.0,0.00010094,2]
[353288533,1739741443462,-2000.0,0.00010107,2]
[353288535,1739741443471,-500.0,0.00010124,2]
[353288537,1739741443479,-150.99,0.00010124,2]
[353288539,1739741443489,-1115.96,0.00010124,2]
[353288540,1739741443498,-1449.03,0.00010124,2]
[353288542,1739741443507,-184.62,0.00010137,2]
[353288544,1739741443516,-150.0,0.00010208,2]
[353288545,1739741443527,-150.0,0.00010208,2]
[353288547,1739741443536,-150.0,0.00010208,2]
[353288549,1739741443545,-150.0,0.00010208,2]
[353288551,1739741443554,-150.0,0.00010208,2]
[353288553,1739741443563,-1000.0,0.00010241,2]
[353288555,1739741443577,-250.0,0.000104,2]
[353288557,1739741443587,-613.28,0.00010481,2]
[353288559,1739741443596,-999.99,0.00010481,2]
[353288561,1739741443605,-299.99,0.00010481,2]
[353288563,1739741443614,-150.99,0.00010481,2]
[353288565,1739741443624,-822.21234042,0.00010858,2]
[353288567,1739741443633,-166.76955619,0.000109,2]
[353288568,1739741443643,-166.76955616,0.000109,2]
[353288569,1739741443652,-9372.88901948,0.00010941,2]
[353288570,1739741443663,-1720.419,0.00010941,2]
[353288572,1739741443673,-182.069,0.00010941,2]
[353288574,1739741443682,-907.51339715,0.00010948,2]
[353288576,1739741443692,-500.0,0.00010958,2]
[353288577,1739741443702,-500.81068558,0.00010958,2]
[353288578,1739741443711,-528.33,0.00010958,2]
[353288579,1739741443721,-500.0,0.00010958,2]
[353288580,1739741443730,-500.0,0.00010958,2]
[353288581,1739741443741,-500.0,0.00010958,2]
[353288582,1739741443751,-500.0,0.00010958,2]
[353288583,1739741443760,-500.0,0.00010958,2]
[353288584,1739741443770,-500.0,0.00010958,2]
[353288585,1739741443780,-500.0,0.00010958,2]
[353288586,1739741443789,-500.0,0.00010958,2]
[353288587,1739741443799,-500.0,0.00010958,2]
[353288589,1739741443808,-500.0,0.00010958,2]
[353288591,1739741443818,-500.0,0.00010958,2]
[353288593,1739741443827,-401.45843035,0.00010958,2]
[353288595,1739741443837,-500.0,0.00010958,2]
[353288597,1739741443846,-500.0,0.00010958,2]
[353288599,1739741443856,-500.0,0.00010958,2]
[353288601,1739741443865,-500.0,0.00010958,2]
[353288603,1739741443875,-500.0,0.00010958,2]
[353288605,1739741443884,-500.0,0.00010958,2]
[353288607,1739741443893,-500.0,0.00010958,2]
[353288609,1739741443903,-500.0,0.00010958,2]
[353288611,1739741443912,-500.0,0.00010958,2]
[353288613,1739741443921,-244.96988253,0.00010958,2]
[353288615,1739741443930,-512.30474737,0.00010958,2]
[353288617,1739741443941,-603.95364368,0.00010958,2]
[353288619,1739741443951,-500.0,0.00010958,2]
[353288621,1739741443961,-500.0,0.00010958,2]
[353288623,1739741443970,-500.0,0.00010958,2]
[353288625,1739741443979,-500.0,0.00010958,2]
[353288627,1739741443988,-500.0,0.00010958,2]
[353288629,1739741443998,-500.0,0.00010958,2]
[353288631,1739741444007,-500.0,0.00010958,2]
[353288633,1739741444017,-500.0,0.00010958,2]
[353288635,1739741444027,-500.0,0.00010958,2]
[353288637,1739741444036,-500.0,0.00010958,2]
[353288639,1739741444045,-500.0,0.00010958,2]
[353288641,1739741444054,-500.0,0.00010958,2]
[353288643,1739741444064,-500.0,0.00010958,2]
[353288645,1739741444074,-500.0,0.00010958,2]
[353288647,1739741444083,-500.0,0.00010958,2]
[353288649,1739741444092,-500.0,0.00010958,2]
[353288651,1739741444101,-500.0,0.00010958,2]
[353288653,1739741444110,-500.0,0.00010958,2]
[353288655,1739741444119,-188.47125144,0.00010958,2]
[353288657,1739741444131,-500.49388566,0.00010958,2]
[353288659,1739741444141,-500.0,0.00010958,2]
[353288661,1739741444150,-500.0,0.00010958,2]
[353288663,1739741444159,-501.01091773,0.00010958,2]
[353288665,1739741444169,-500.0,0.00010958,2]
[353288667,1739741444178,-500.0,0.00010958,2]
[353288669,1739741444187,-500.0,0.00010958,2]
[353288671,1739741444196,-151.51593234,0.00010958,2]
[353288673,1739741444205,-500.0,0.00010958,2]
[353288675,1739741444215,-500.0,0.00010958,2]
[353288677,1739741444223,-500.0,0.00010958,2]
[353288679,1739741444233,-500.0,0.00010958,2]
[353288681,1739741444242,-500.0,0.00010958,2]
[353288683,1739741444252,-500.0,0.00010958,2]
[353288685,1739741444261,-500.0,0.00010958,2]
[353288687,1739741444271,-500.0,0.00010958,2]
[353288689,1739741444281,-500.0,0.00010958,2]
[353288691,1739741444292,-500.0,0.00010958,2]
[353288693,1739741444302,-500.0,0.00010958,2]
[353288695,1739741444311,-500.0,0.00010958,2]
[353288697,1739741444320,-500.0,0.00010958,2]
[353288699,1739741444330,-500.0,0.00010958,2]
[353288701,1739741444339,-500.0,0.00010958,2]
[353288703,1739741444348,-500.240784,0.00010958,2]
[353288705,1739741444357,-500.0,0.00010958,2]
[353288707,1739741444366,-500.0,0.00010958,2]
[353288709,1739741444375,-500.0,0.00010958,2]
[353288711,1739741444385,-500.0,0.00010958,2]
[353288713,1739741444394,-522.35,0.00010958,2]
[353288715,1739741444403,-500.0,0.00010958,2]
[353288717,1739741444413,-500.0,0.00010958,2]
[353288719,1739741444422,-624.3,0.00010958,2]
[353288721,1739741444431,-500.0,0.00010958,2]
[353288723,1739741444440,-3902.37182813,0.00010958,2]
[353288725,1739741444449,-500.0,0.00010958,2]
[353288727,1739741444458,-500.0,0.00010958,2]
[353288729,1739741444468,-500.0,0.00010958,2]
[353288731,1739741444477,-500.0,0.00010958,2]
[353288733,1739741444486,-500.0,0.00010958,2]
[353288735,1739741444495,-500.76067431,0.00010958,2]
[353288737,1739741444505,-500.0,0.00010958,2]
[353288739,1739741444514,-500.0,0.00010958,2]
[353288741,1739741444525,-500.0,0.00010958,2]
[353288743,1739741444534,-500.0,0.00010958,2]
[353288745,1739741444544,-501.79003758,0.00010958,2]
[353288747,1739741444553,-501.38003324,0.00010958,2]
[353288749,1739741444562,-503.03,0.00010958,2]
[353288751,1739741444571,-500.0,0.00010958,2]
[353288753,1739741444581,-500.0,0.00010958,2]
[353288755,1739741444590,-503.42757966,0.00010958,2]
[353288757,1739741444599,-500.0,0.00010958,2]
[353288759,1739741444609,-502.50806508,0.00010958,2]
[353288761,1739741444618,-500.0,0.00010958,2]
[353288763,1739741444627,-500.0,0.00010958,2]
[353288765,1739741444636,-500.0,0.00010958,2]
[353288767,1739741444645,-500.0,0.00010958,2]
[353288769,1739741444655,-500.0,0.00010958,2]
[353288771,1739741444666,-500.0,0.00010958,2]
[353288773,1739741444676,-500.0,0.00010958,2]
[353288775,1739741444685,-500.0,0.00010958,2]
[353288777,1739741444694,-500.0,0.00010958,2]
[353288779,1739741444704,-500.0,0.00010958,2]
[353288781,1739741444713,-500.0,0.00010958,2]
[353288783,1739741444723,-500.0,0.00010958,2]
[353288785,1739741444733,-500.0,0.00010958,2]
[353288787,1739741444743,-500.0,0.00010958,2]
[353288789,1739741444752,-500.0,0.00010958,2]
[353288791,1739741444762,-500.0,0.00010958,2]
[353288793,1739741444771,-500.0,0.00010958,2]
[353288795,1739741444781,-500.0,0.00010958,2]
[353288797,1739741444790,-500.0,0.00010958,2]
[353288799,1739741444800,-500.0,0.00010958,2]
[353288801,1739741444810,-500.0,0.00010958,2]
[353288803,1739741444819,-500.0,0.00010958,2]
[353288805,1739741444829,-509.09,0.00010958,2]
[353288807,1739741444838,-500.0,0.00010958,2]
[353288809,1739741444848,-500.0,0.00010958,2]
[353288811,1739741444857,-500.0,0.00010958,2]
[353288813,1739741444866,-500.0,0.00010958,2]
[353288815,1739741444875,-500.0,0.00010958,2]
[353288816,1739741444883,-500.0,0.00010958,2]
[353288819,1739741444893,-500.0,0.00010958,2]
[353288820,1739741444903,-500.0,0.00010958,2]
[353288822,1739741444913,-500.0,0.00010958,2]
[353288824,1739741444922,-500.0,0.00010958,2]
[353288827,1739741444932,-500.0,0.00010958,2]
[353288829,1739741444941,-500.0,0.00010958,2]
[353288830,1739741444951,-500.0,0.00010958,2]
[353288832,1739741444960,-500.0,0.00010958,2]
[353288834,1739741444969,-500.0,0.00010958,2]
[353288836,1739741444979,-253.40489674,0.00010958,2]
[353288838,1739741444988,-500.0,0.00010958,2]
[353288840,1739741444998,-505.98,0.00010958,2]
[353288842,1739741445007,-500.0,0.00010958,2]
[353288844,1739741445017,-500.0,0.00010958,2]
[353288846,1739741445028,-500.0,0.00010958,2]
[353288849,1739741445037,-500.62622198,0.00010958,2]
[353288850,1739741445046,-500.0,0.00010958,2]
[353288852,1739741445056,-500.0,0.00010958,2]
[353288854,1739741445065,-500.0,0.00010958,2]
[353288856,1739741445074,-500.0,0.00010958,2]
[353288858,1739741445083,-500.0,0.00010958,2]
[353288860,1739741445093,-500.0,0.00010958,2]
[353288863,1739741445102,-500.0,0.00010958,2]
[353288865,1739741445112,-500.0,0.00010958,2]
[353288867,1739741445122,-500.0,0.00010958,2]
[353288869,1739741445132,-500.0,0.00010958,2]
[353288871,1739741445141,-500.0,0.00010958,2]
[353288872,1739741445149,-500.0,0.00010958,2]
[353288874,1739741445158,-500.0,0.00010958,2]
[353288876,1739741445168,-500.0,0.00010958,2]
[353288878,1739741445176,-975.07,0.00010958,2]
[353288880,1739741445185,-715.78,0.00010958,2]
[353288882,1739741445195,-581.37191801,0.00010958,2]
[353288884,1739741445203,-500.0,0.00010958,2]
[353288886,1739741445213,-500.0,0.00010958,2]
[353288888,1739741445222,-580.32462573,0.00010958,2]
[353288890,1739741445232,-500.0,0.00010958,2]
[353288892,1739741445241,-661.44,0.00010958,2]
[353288894,1739741445250,-501.13646855,0.00010958,2]
[353288896,1739741445260,-500.0,0.00010958,2]
[353288898,1739741445269,-569.67204108,0.00010958,2]
[353288900,1739741445278,-500.0,0.00010958,2]
[353288902,1739741445288,-679.94,0.00010958,2]
[353288904,1739741445296,-500.0,0.00010958,2]
[353288906,1739741445306,-500.0,0.00010958,2]
[353288908,1739741445315,-500.0,0.00010958,2]
[353288910,1739741445324,-500.0,0.00010958,2]
[353288912,1739741445333,-500.0,0.00010958,2]
[353288914,1739741445343,-500.0,0.00010958,2]
[353288916,1739741445352,-500.0,0.00010958,2]
[353288918,1739741445361,-897.36,0.00010958,2]
[353288920,1739741445370,-501.4581613,0.00010958,2]
[353288922,1739741445379,-500.0,0.00010958,2]
[353288924,1739741445388,-500.0,0.00010958,2]
[353288926,1739741445398,-500.0,0.00010958,2]
[353288928,1739741445407,-500.0,0.00010958,2]
[353288930,1739741445416,-500.0,0.00010958,2]
[353288932,1739741445425,-500.0,0.00010958,2]
[353288934,1739741445434,-500.0,0.00010958,2]
[353288936,1739741445444,-500.0,0.00010958,2]
[353288938,1739741445453,-500.0,0.00010958,2]
[353288940,1739741445462,-501.21013689,0.00010958,2]
[353288942,1739741445471,-500.0,0.00010958,2]
[353288944,1739741445480,-500.0,0.00010958,2]
[353288946,1739741445489,-500.0,0.00010958,2]
[353288948,1739741445498,-500.0,0.00010958,2]
[353288950,1739741445507,-658.81,0.00010958,2]
[353288952,1739741445516,-500.0,0.00010958,2]
[353288954,1739741445527,-501.74765094,0.00010958,2]
[353288956,1739741445536,-709.91,0.00010958,2]
[353288958,1739741445545,-500.0,0.00010958,2]
[353288960,1739741445554,-500.0,0.00010958,2]
[353288962,1739741445565,-500.0,0.00010958,2]
[353288964,1739741445574,-500.0,0.00010958,2]
[353288966,1739741445584,-501.70901193,0.00010958,2]
[353288968,1739741445593,-500.0,0.00010958,2]
[353288970,1739741445602,-500.0,0.00010958,2]
[353288972,1739741445611,-500.0,0.00010958,2]
[353288974,1739741445621,-500.0,0.00010958,2]
[353288976,1739741445630,-500.0,0.00010958,2]
[353288978,1739741445639,-500.0,0.00010958,2]
[353288980,1739741445649,-366.48310199,0.00010958,2]
[353288982,1739741445658,-500.0,0.00010958,2]
[353288984,1739741445670,-500.0,0.00010958,2]
[353288986,1739741445679,-837.98,0.00010958,2]
[353288988,1739741445688,-500.0,0.00010958,2]
[353288990,1739741445697,-575.12,0.00010958,2]
[353288992,1739741445707,-500.0,0.00010958,2]
[353288994,1739741445717,-500.0,0.00010958,2]
[353288996,1739741445726,-500.0,0.00010958,2]
[353288998,1739741445735,-500.0,0.00010958,2]
[353289000,1739741445747,-500.0,0.00010958,2]
[353289002,1739741445756,-500.0,0.00010958,2]
[353289004,1739741445765,-500.0,0.00010958,2]
[353289006,1739741445774,-500.0,0.00010958,2]
[353289008,1739741445785,-503.16611841,0.00010958,2]
[353289010,1739741445794,-500.0,0.00010958,2]
[353289012,1739741445803,-500.0,0.00010958,2]
[353289014,1739741445812,-591.55,0.00010958,2]
[353289016,1739741445821,-500.0,0.00010958,2]
[353289018,1739741445831,-500.0,0.00010958,2]
[353289020,1739741445841,-500.76522693,0.00010958,2]
[353289022,1739741445851,-500.0,0.00010958,2]
[353289024,1739741445860,-500.0,0.00010958,2]
[353289026,1739741445869,-500.0,0.00010958,2]
[353289028,1739741445878,-606.11,0.00010958,2]
[353289030,1739741445887,-500.0,0.00010958,2]
[353289032,1739741445897,-500.0,0.00010958,2]
[353289034,1739741445906,-500.0,0.00010958,2]
[353289036,1739741445917,-556.02,0.00010958,2]
[353289038,1739741445926,-502.89920641,0.00010958,2]
[353289040,1739741445935,-918.159809,0.00010958,2]
[353289042,1739741445944,-638.34,0.00010958,2]
[353289044,1739741445953,-500.0,0.00010958,2]
[353289046,1739741445963,-500.0,0.00010958,2]
[353289048,1739741445972,-500.0,0.00010958,2]
[353289051,1739741445982,-387.35964284,0.00010958,2]
[353289053,1739741445991,-500.0,0.00010958,2]
[353289056,1739741445999,-500.0,0.00010958,2]
[353289058,1739741446009,-500.0,0.00010958,2]
[353289060,1739741446018,-500.0,0.00010958,2]
[353289062,1739741446027,-500.0,0.00010958,2]
[353289064,1739741446038,-161.281649,0.00010958,2]